Cogmind - Beta 9.5 @@@ ROGUE MODE // 2020.04.03 @ 11:53:01 // AFD2020/Player2 Player: Finestep Result: Destroyed by G-67 Veteran with Plasma Rifle Performance ------------- Evolutions (4) 2000 Regions Visited (10) 2000 Robots Destroyed (129) 645 Value Destroyed (5038) 5038 Prototype IDs (29) 580 Alien Tech Used (0) 0 Bonus (5307) 5307 TOTAL SCORE: 15570 Bonus ------- Triggered High Security 500 High Alert Combat Kills 885 Follower Combat Kills 3167 Entered Garrisons 400 Used RIF Installer 1000 Aligned with FarCom 300 Friendly Fire -945 Cogmind --------- Core Integrity 0/850 Matter 42/300 Energy 132/140 System Corruption 2% Temperature Cool (5) Movement Walking (150) Ox1 Location -6/Factory Parts ------- > --- POWER (1) -------- Light Deuterium Engine > --- PROPULSION (4) --- Carbon-fiber Leg Carbon-fiber Leg Carbon-fiber Leg Armored Leg > --- UTILITY (7) ------ Large Storage Unit Large Storage Unit High-capacity Storage Unit Modified TNC Hardened Medium Armor Plating Relay Coupler [NC] (22) > --- WEAPON (3) ------- Antimatter Cannon > --- INVENTORY (24) --- Combat Airjet Combat Airjet Power Amplifier Power Amplifier Advanced Heat Sink Compact Battery (300) Long-range Terrain Scanner Advanced Terrain Scan Processor Advanced Targeting Computer Hardened Heavy Armor Plating Hardened Heavy Armor Plating Hacking Suite Relay Coupler [Hunter] (12) Remote Datajack Chainsword Peak State ------------ > --- POWER ------------ F-cell Engine > --- PROPULSION ------- Aluminum Leg Carbon-fiber Leg Carbon-fiber Leg Carbon-fiber Leg > --- UTILITY ---------- Large Storage Unit Large Storage Unit High-capacity Storage Unit Modified TNC Hardened Medium Armor Plating Relay Coupler [NC] Relay Coupler [Grunt] > --- WEAPON ----------- Force Rifle Antimatter Cannon Remote Datajack > --- INVENTORY -------- Light Deuterium Engine Carbon-fiber Leg Carbon-fiber Leg Armored Leg Combat Airjet Combat Airjet Power Amplifier Power Amplifier Advanced Heat Sink Compact Battery Long-range Terrain Scanner Advanced Terrain Scan Processor Advanced Targeting Computer Hardened Medium Armor Plating Hardened Medium Armor Plating Hardened Heavy Armor Plating Hardened Heavy Armor Plating Hacking Suite Relay Coupler [NC] Relay Coupler [Hunter] Remote Datajack Chainsword [Rating: 56] Favorites ----------- Power Light Nuclear Core Engine Ion Engine Power Core Light Nuclear Core Propulsion Light Treads Treads Light Treads Leg Carbon-fiber Leg Wheel Wheel Hover Unit Aerolev Unit Utility Large Storage Unit Device Advanced Terrain Scanner Storage Large Storage Unit Processor Modified TNC Hackware Relay Coupler [Grunt] Protection Powered Armor Weapon Enhanced Autogun Energy Gun Medium Laser Energy Cannon Particle Cannon Ballistic Gun Enhanced Autogun Ballistic Cannon Antimatter Cannon Launcher EMP Blaster Special Weapon Remote Datajack Slashing Weapon Chainsword Piercing Weapon Spear Special Melee Weapon Datajack Build | -11 -10 -10 -10 -9 -8 -8 -8 -8 -7 -6 ------- Run | Scr Mat Min Exi Min Mat Gar Mat Gar Fac Fac Slots Evolved 8 | . . . . . 4 . . . 2 2 Power . | . . . . . . . . . . . Propulsion 2 | . . . . . 1 . . . . 1 Utility 5 | . . . . . 2 . . . 2 1 Weapon 1 | . . . . . 1 . . . . . Parts Attached 175 | 7 11 . 1 2 14 29 26 14 46 25 Power 14 | 1 1 . . . 3 1 1 1 3 3 Engine 9 | 1 1 . . . . . . 1 3 3 Core 5 | . . . . . 3 1 1 . . . Reactor . | . . . . . . . . . . . Propulsion 46 | 2 1 . . 2 5 4 10 2 12 8 Treads 25 | 1 . . . 1 2 4 10 2 5 . Leg 11 | . . . . . . . . . 3 8 Wheel 9 | 1 1 . . 1 2 . . . 4 . Hover 1 | . . . . . 1 . . . . . Flight . | . . . . . . . . . . . Utility 45 | 2 4 . 1 . 3 7 3 5 13 7 Device 4 | . . . . . . . . 2 1 1 Storage 8 | 2 4 . 1 . 1 . . . . . Processor 1 | . . . . . . . . . 1 . Hackware 11 | . . . . . . 3 1 . 5 2 Protection 21 | . . . . . 2 4 2 3 6 4 Artifact . | . . . . . . . . . . . Weapon 70 | 2 5 . . . 3 17 12 6 18 7 Energy Gun 5 | 1 . . . . . . . . 3 1 Energy Cannon 1 | . . . . . 1 . . . . . Ballistic Gun 34 | 1 5 . . . 2 8 8 2 7 1 Ballistic Cannon 1 | . . . . . . . . . . 1 Launcher 6 | . . . . . . 2 2 . 2 . Special Weapon 6 | . . . . . . . . . 4 2 Impact Weapon . | . . . . . . . . . . . Slashing Weapon 3 | . . . . . . . . . 1 2 Piercing Weapon 8 | . . . . . . 5 . 3 . . Special Melee Weapon 6 | . . . . . . 2 2 1 1 . Unidentified Prototypes 5 | . . . . . 1 . 1 . 1 2 Parts Lost 22 | . . . . 1 2 1 . 1 7 10 Power 4 | . . . . . 1 . . 1 . 2 Propulsion 7 | . . . . 1 1 . . . 2 3 Utility 6 | . . . . . . . . . 4 2 Weapon 5 | . . . . . . 1 . . 1 3 Highest Loss Streak 3 | . . . . 1 2 1 . 1 3 3 Average Slot Usage (%) 98 | . 98 100 100 99 98 99 98 99 98 95 Engine 6 | . 14 14 14 14 1 . . 8 7 5 Core 3 | . . . . . 7 9 9 . . . Treads 17 | . 14 14 14 20 11 27 26 26 10 . Leg 2 | . . . . . . . . . 1 24 Wheel 5 | . 14 14 14 7 14 . . . 9 . Device 1 | . . . . . . . . 5 1 1 Storage 25 | . 26 28 28 28 26 27 27 27 23 20 Processor 1 | . . . . . . . . . 6 6 Hackware 1 | . . . . . . . 2 . 2 10 Protection 5 | . . . . . 9 8 6 2 8 6 Energy Gun 1 | . 10 . . . . . . . 2 4 Ballistic Gun 19 | . 17 28 28 28 18 21 24 18 16 3 Piercing Weapon 1 | . . . . . . 3 . 7 . . Naked Turns . | . . . . . . . . . . . Heaviest Build 104 | 14 43 43 59 59 82 84 84 89 104 100 Greatest Support 61 | 16 16 10 10 20 40 60 60 60 60 61 Greatest Overweight (x) 9 | . 4 4 5 5 8 1 3 2 9 2 Average Overweight (x) 2 | . 2 4 4 3 4 1 1 1 4 1 Largest Inventory Capacity 24 | 8 16 16 18 18 24 24 24 24 24 24 Average Capacity 21 | 5 14 16 16 18 23 24 24 24 24 24 Most Carried 24 | 5 16 16 17 17 24 24 24 24 24 24 Average Carried 20 | 2 10 16 16 16 21 23 23 23 23 22 Final Capacity 24 | 8 16 16 18 18 24 24 24 24 24 24 Final Carried 24 | 5 16 16 17 17 24 24 24 24 24 17 Class Distribution -------------------- 27% | Mutant 20% | Hauler-Skirmisher 13% | Hauler-Mutant 10% | Scavenger-Mutant 9% | Bothacker-Assassin 8% | Bothacker-Mutant 6% | Bothacker-Skirmisher Dominant Class ---------------- Mutant | -10/Materials Mutant | -10/Mines Mutant | -10/Exiles Mutant | -9/Mines Hauler-Skirmisher | -8/Materials Hauler-Skirmisher | -8/Garrison Hauler-Skirmisher | -8/Materials Bothacker-Assassin | -8/Garrison Bothacker-Skirmisher | -7/Factory Hauler-Mutant | -6/Factory Resources | -11 -10 -10 -10 -9 -8 -8 -8 -8 -7 -6 ----------- Run | Scr Mat Min Exi Min Mat Gar Mat Gar Fac Fac Matter Collected 4548 | 272 240 84 . 324 576 716 630 328 1145 233 Remotely . | . . . . . . . . . . . Salvage Created 5100 | 99 528 127 . 339 1145 703 764 162 830 403 Parts 254 | 2 29 17 . 8 58 42 45 7 32 14 Haulers Intercepted 7 | . 1 . . . 3 . 2 . . 1 Recyclers Shooed 5 | . . . . 2 1 . 2 . . . Parts Field Recycled . | . . . . . . . . . . . Retrieved Matter . | . . . . . . . . . . . Parts Self-Destructed . | . . . . . . . . . . . Prevented . | . . . . . . . . . . . Kills | -11 -10 -10 -10 -9 -8 -8 -8 -8 -7 -6 ------- Run | Scr Mat Min Exi Min Mat Gar Mat Gar Fac Fac Combat Hostiles Destroyed 87 | . 14 3 . 9 12 18 13 3 9 6 Melee 2 | . . . . . 1 1 . . . . Guns 66 | . 14 3 . 9 6 10 11 3 7 3 Cannons 10 | . . . . . 5 2 . . . 3 AOE 9 | . . . . . . 5 2 . 2 . Classes Destroyed 14 | 1 5 1 . 1 4 . 1 . . 1 Worker 11 | . 1 2 . 1 1 . 3 . 3 . Builder 2 | . . . . . 1 . . . 1 . Tunneler 2 | . . 1 . . . . . . 1 . Hauler 7 | . 1 . . . 3 . 2 . . 1 Recycler 13 | 1 1 . . 2 4 . 1 . 3 1 Operator 3 | . 1 . . . 1 . . . 1 . Watcher 4 | . . . . . . . 2 . 2 . Swarmer 23 | . 8 2 . . 1 4 6 . 2 . Grunt 37 | . 6 1 . . 8 10 4 1 5 2 Brawler 4 | . . . . . 1 1 . 1 1 . Duelist 6 | . . . . . 1 . 2 1 1 1 Sentry 7 | . . . . . 1 3 1 . . 2 Programmer 1 | . . . . . . . . . . 1 Assembled 9 | . . . . 9 . . . . . . Best Kill Streak 6 | 1 3 5 . 3 3 6 5 2 5 2 Combat Bots Only 6 | . 3 2 . 2 2 6 5 2 4 2 Max Kills in Single Turn 3 | 1 1 1 . 1 2 2 3 1 2 1 Gunslinging 2 | . . . . . . . 2 . . . Exploded 2 | . . . . . . 2 2 . 2 . Melee 1 | . . . . . 1 1 . . . . Uniques/NPCs Destroyed . | . . . . . . . . . . . Combat | -11 -10 -10 -10 -9 -8 -8 -8 -8 -7 -6 -------- Run | Scr Mat Min Exi Min Mat Gar Mat Gar Fac Fac Damage Taken 6948 | . 374 89 . 355 633 576 641 188 2022 2070 Core 671 | . 70 35 . 43 80 60 95 8 131 149 Absorbed by Shields 15 | . . . . . . 15 . . . . Core Remaining (%) 47 | 100 . . . 17 . . . 12 59 . Volleys Fired 404 | 2 49 12 . 47 57 43 41 11 86 56 Largest 3 | 2 2 2 . 2 3 3 3 3 3 2 Hottest 120 | 70 70 46 . 46 118 118 83 78 100 120 Shots Fired 882 | 4 96 24 . 94 144 115 107 29 198 71 Gun 777 | 4 96 24 . 94 108 103 104 29 185 30 Cannon 70 | . . . . . 36 7 . . . 27 Launcher 9 | . . . . . . 5 3 . 1 . Special 26 | . . . . . . . . . 12 14 Kinetic 741 | 2 67 24 . 94 108 103 104 29 168 42 Thermal 93 | 2 29 . . . 36 7 . . 4 15 Explosive 6 | . . . . . . 5 . . 1 . Electromagnetic 16 | . . . . . . . 3 . 13 . Robot Hit Streak 17 | 3 10 4 . 7 9 15 17 8 10 8 Robot Miss Streak 9 | 1 4 2 . 3 4 5 9 5 7 5 Penetration Max 1 | . . . . . . . . . 1 . Secondary Targets 16 | . 4 1 . 1 . 1 3 2 4 . Max Gunslinging Chain 2 | . 1 1 . 1 . 1 2 1 1 . Shots Hit Robots 567 | 3 59 14 . 55 78 72 96 25 127 38 Core Hits 274 | 2 27 7 . 21 32 43 68 10 49 15 Critical Hits 4 | . . . . 1 1 . . . 1 1 Critical Kills 1 | . . . . . 1 . . . . . Critical Parts Destroyed 3 | . . . . 1 . . . . 1 1 Melee Attacks 34 | . . . . . . 9 1 15 3 6 Impact . | . . . . . . . . . . . Slashing 7 | . . . . . . . . . 1 6 Piercing 20 | . . . . . . 5 . 14 1 . Sneak Attacks 3 | . . . . . . 2 . . 1 . Combat Hostiles 1 | . . . . . . 1 . . . . Follow-up Attacks . | . . . . . . . . . . . Damage Inflicted 9809 | 29 688 170 . 743 1381 1596 1703 241 2389 869 Guns 7700 | 29 688 170 . 743 885 918 1618 241 2091 317 Cannons 1109 | . . . . . 492 104 . . . 513 Explosions 873 | . . . . . . 573 85 . 215 . Melee 122 | . . . . . . . . . 83 39 Ramming 5 | . . . . . 4 1 . . . . Kinetic 7648 | 17 489 170 . 743 885 918 1618 241 1873 694 Thermal 980 | 12 199 . . . 492 104 14 . 23 136 Explosive 788 | . . . . . . 573 . . 215 . Electromagnetic 266 | . . . . . . . 71 . 195 . Impact . | . . . . . . . . . . . Slashing 39 | . . . . . . . . . . 39 Piercing 83 | . . . . . . . . . 83 . Highest Corruption 7 | . . . . . 2 2 2 2 7 2 Average Corruption 2 | . . . . . 2 2 2 2 5 1 Corruption Purged . | . . . . . . . . . . . Effects 115 | . . . . . 4 17 12 16 52 14 Message Errors 29 | . . . . . 2 3 5 4 9 6 Matter Fused 10 | . . . . . . . . . 10 . Heat Flow Errors 16 | . . . . . 2 3 . 3 7 1 Energy Discharges 17 | . . . . . . 5 1 5 2 4 Data Loss (minor) 17 | . . . . . . 4 2 3 7 1 Misfires 3 | . . . . . . . . . 3 . Targeting Errors 21 | . . . . . . 2 4 1 12 2 Weapon Failures 2 | . . . . . . . . . 2 . Overload Shots . | . . . . . . . . . . . Overflow Damage 32 | . . . . . . 13 . . 9 10 Projectiles . | . . . . . . . . . . . Explosions 22 | . . . . . . 13 . . 9 . Melee 10 | . . . . . . . . . . 10 Knockbacks 2 | . . . . . . . . . . 2 Impact . | . . . . . . . . . . . Kinetic 1 | . . . . . . . . . . 1 Secondary 1 | . . . . . . . . . . 1 Self-Inflicted Damage 142 | . . . . . . 26 14 . 102 . Shots 5 | . . . . . . 2 1 . 2 . Rammed . | . . . . . . . . . . . Targets Rammed 2 | . . . . . 1 1 . . . . Kicked . | . . . . . . . . . . . Crushed 2 | . . . . . 1 1 . . . . Highest Temperature 327 | 40 90 12 . 32 327 237 175 277 324 177 Average Temperature 64 | 23 27 5 . 6 101 51 48 83 82 57 Received Heat Transfer 1829 | . 111 9 . 60 252 233 198 27 486 453 Effects 9 | . . . . . 1 . . . 8 . Energy Bleed 1 | . . . . . . . . . 1 . Interference 7 | . . . . . 1 . . . 6 . Short Circuit 1 | . . . . . . . . . 1 . Siege Activations . | . . . . . . . . . . . Robots Corrupted . | . . . . . . . . . . . Combat Hostiles . | . . . . . . . . . . . Parts Fried 1 | . . . . . . . . . 1 . Impact Corruptions . | . . . . . . . . . . . Robots Melted . | . . . . . . . . . . . Combat Hostiles . | . . . . . . . . . . . Parts Melted 2 | . 1 . . . 1 . . . . . Heat Transferred 2011 | 37 592 . . . 888 185 50 . 37 222 Parts Sabotaged . | . . . . . . . . . . . Parts Stolen . | . . . . . . . . . . . Parts Stripped . | . . . . . . . . . . . Power Chain Reactions 2 | . . . . . . . 2 . . . Missiles Intercepted . | . . . . . . . . . . . Alert | -11 -10 -10 -10 -9 -8 -8 -8 -8 -7 -6 ------- Run | Scr Mat Min Exi Min Mat Gar Mat Gar Fac Fac Peak Influence 2166 | 5 652 406 . 96 302 1281 1089 1041 1286 2166 Average Influence 635 | 1 221 309 . 24 129 867 649 923 766 1065 Maximum Alert Level 5 | . 2 2 . . 1 4 3 3 4 5 Low Security (%) 22 | 100 63 . . 100 77 5 . . . . Level 1 8 | . 7 54 . . 22 10 6 . . . Level 2 25 | . 29 45 . . . 6 65 . 56 45 Level 3 34 | . . . . . . 56 27 100 29 23 Level 4 7 | . . . . . . 21 . . 14 6 Level 5 . | . . . . . . . . . . . High Security 2 | . . . . . . . . . . 23 Max Security . | . . . . . . . . . . . Squads Dispatched 45 | . 6 . . . 8 . 6 . 11 14 Investigation 10 | . 3 . . . 3 . 2 . 2 . Extermination 4 | . . . . . . . . . 3 1 Reinforcement 14 | . 3 . . . 3 . . . 4 4 Assault 12 | . . . . . . . 1 . 2 9 Garrison 5 | . . . . . 2 . 3 . . . Intercept . | . . . . . . . . . . . Construction Impeded 5 | . . . . . 1 . . . 2 2 Haulers Reinforced 3 | . . . . . . . . . 1 2 Stealth | -11 -10 -10 -10 -9 -8 -8 -8 -8 -7 -6 --------- Run | Scr Mat Min Exi Min Mat Gar Mat Gar Fac Fac Distress Signals 10 | . 1 . . . 1 . 2 . 1 5 Communications Jammed . | . . . . . . . . . . . Distress Signals . | . . . . . . . . . . . Times Spotted 259 | . 29 5 . 22 30 29 37 10 43 54 Peak Tracking Total 18 | . 5 3 . 3 5 6 5 4 11 18 Tactical Retreats 13 | . 2 . . 2 2 . 1 . . 6 Traps | -11 -10 -10 -10 -9 -8 -8 -8 -8 -7 -6 ------- Run | Scr Mat Min Exi Min Mat Gar Mat Gar Fac Fac Traps Triggered 23 | . 1 . . . 1 5 3 8 4 1 Indirectly . | . . . . . . . . . . . Trap Hack Attempts . | . . . . . . . . . . . Triggered . | . . . . . . . . . . . Disarmed . | . . . . . . . . . . . Reprogrammed . | . . . . . . . . . . . Reused . | . . . . . . . . . . . Traps Extracted . | . . . . . . . . . . . Installed . | . . . . . . . . . . . Triggered . | . . . . . . . . . . . Machines | -11 -10 -10 -10 -9 -8 -8 -8 -8 -7 -6 ---------- Run | Scr Mat Min Exi Min Mat Gar Mat Gar Fac Fac Machines Disabled 43 | . . . . . 3 5 2 3 1 29 Max in Single Turn 1 | . . . . . 1 1 . 1 1 1 Garrison Access 2 | . . . . . . . . . . 2 Garrison Relay 8 | . . . . . . 5 . 3 . . Machines Sabotaged . | . . . . . . . . . . . Garrisons Compromised . | . . . . . . . . . . . Overloaded Fab Kills . | . . . . . . . . . . . Fab Network Shutdowns . | . . . . . . . . . . . Hacking | -11 -10 -10 -10 -9 -8 -8 -8 -8 -7 -6 --------- Run | Scr Mat Min Exi Min Mat Gar Mat Gar Fac Fac Machines Accessed 28 | . 5 . 2 . 7 . 3 . 7 4 Terminals 15 | . 3 . . . 4 . 1 . 5 2 Fabricators 1 | . . . . . . . . . 1 . Repair Stations . | . . . . . . . . . . . Recycling Units 3 | . 2 . . . . . . . 1 . Scanalyzers 3 | . . . . . 2 . 1 . . . Garrison Access 4 | . . . . . 1 . 1 . . 2 Total Hacks 70 | . 19 . 5 . 14 . 8 . 18 6 Successful 38 | . 9 . 5 . 11 . 6 . 4 3 Failed 32 | . 10 . . . 3 . 2 . 14 3 Catastrophic 11 | . . . . . 3 . 1 . 7 . Database Lockouts . | . . . . . . . . . . . Manual 20 | . 7 . 1 . 5 . 1 . 4 2 Terminals 40 | . 12 . . . 9 . 4 . 12 3 Fabricators 3 | . . . . . . . . . 3 . Repair Stations . | . . . . . . . . . . . Recycling Units 10 | . 7 . . . . . . . 3 . Scanalyzers 6 | . . . . . 4 . 2 . . . Garrison Access 6 | . . . . . 1 . 2 . . 3 Terminal Hacks 20 | . 5 . 5 . 6 . 2 . 2 . Record 4 | . . . 4 . . . . . . . Robot Analysis 3 | . 3 . . . . . . . . . Prototype ID Bank 1 | . 1 . . . . . . . . . Terminal Index 1 | . . . . . 1 . . . . . Unreport Threat 4 | . . . . . 2 . 2 . . . Locate Traps 1 | . 1 . . . . . . . . . Recall Reinforcements 1 | . . . . . 1 . . . . . Hauler Manifests 1 | . . . . . 1 . . . . . Registered Components 1 | . . . . . . . . . 1 . Zone Layout 2 | . . . . . 1 . . . 1 . EX-Prototype ID Bank 1 | . . . 1 . . . . . . . Fabricator Hacks 1 | . . . . . . . . . 1 . Load Schematic 1 | . . . . . . . . . 1 . Repair Station Hacks . | . . . . . . . . . . . Recycling Unit Hacks 2 | . 2 . . . . . . . . . Retrieve Components 2 | . 2 . . . . . . . . . Scanalyzer 6 | . . . . . 4 . 2 . . . Insert Component 3 | . . . . . 2 . 1 . . . Analyze 3 | . . . . . 2 . 1 . . . Garrison Access Hacks 5 | . . . . . 1 . 1 . . 3 Unlock Access 2 | . . . . . 1 . 1 . . . Seal Access 2 | . . . . . . . . . . 2 Coupler Status 1 | . . . . . . . . . . 1 Unauthorized Hacks 14 | . 5 . . . . . 2 . 5 2 Terminals 1 | . . . . . . . . . 1 . Botnet 1 | . . . . . . . . . 1 . Fabricators . | . . . . . . . . . . . Repair Stations . | . . . . . . . . . . . Recycling Units 2 | . 2 . . . . . . . . . Tunnel 2 | . 2 . . . . . . . . . Scanalyzers . | . . . . . . . . . . . Garrison Access 1 | . . . . . . . 1 . . . Eject 1 | . . . . . . . 1 . . . Data Cores Recovered 1 | . . . . . . . . . 1 . Used . | . . . . . . . . . . . Hacking Detections 23 | . 5 . . . 7 . 1 . 7 3 Full Trace Events 4 | . . . . . 1 . 1 . 2 . Feedback Events 1 | . . . . . . . . . 1 . Hackware Fried 1 | . . . . . . . . . 1 . Feedback Blocked . | . . . . . . . . . . . Robot Schematics Acquired . | . . . . . . . . . . . Robots Built . | . . . . . . . . . . . Matter . | . . . . . . . . . . . Time . | . . . . . . . . . . . Total Robot Build Rating . | . . . . . . . . . . . Part Schematics Acquired 3 | . . . . . 2 . 1 . . . Parts Built . | . . . . . . . . . . . Matter . | . . . . . . . . . . . Time . | . . . . . . . . . . . Total Part Build Rating . | . . . . . . . . . . . Parts Repaired . | . . . . . . . . . . . Time . | . . . . . . . . . . . Parts Recycled . | . . . . . . . . . . . Recycled Matter . | . . . . . . . . . . . Retrieved Matter . | . . . . . . . . . . . Retrieved Components 4 | . 4 . . . . . . . . . Parts Scanalyzed 3 | . . . . . 2 . 1 . . . Part Schematics Acquired 3 | . . . . . 2 . 1 . . . Parts Damaged . | . . . . . . . . . . . Bothacking | -11 -10 -10 -10 -9 -8 -8 -8 -8 -7 -6 ------------ Run | Scr Mat Min Exi Min Mat Gar Mat Gar Fac Fac Used RIF Installer 2 | . . . . . . 1 . 1 . . Program Shield 1 | . . . . . . . . 1 . . Robots Hacked 18 | . . . . . . 3 1 1 6 7 Non-combat 8 | . . . . . . . . . 3 5 Combat 10 | . . . . . . 3 1 1 3 2 Robot Hacks Applied 22 | . . . . . . 3 1 1 10 7 no_distress 3 | . . . . . . . . . 3 . start_evac 1 | . . . . . . . . . . 1 ignore_repairs 3 | . . . . . . . . . 3 . find_fabricator 1 | . . . . . . . . . 1 . recall_reinforcements 1 | . . . . . . . . . . 1 ignore_parts 2 | . . . . . . . . . . 2 map_route 1 | . . . . . . . . . . 1 disrupt_area 1 | . . . . . . . . . 1 . amplify_resonance 1 | . . . . . . . . . . 1 reboot_system 2 | . . . . . . 1 . . . 1 streamctrl_high 1 | . . . . . . . 1 . . . formatsys_high 5 | . . . . . . 2 . 1 2 . Relay Couplers Released 36 | . . . . . . 19 4 11 . 2 Ejected 4 | . . . . . . . 4 . . . Machine Destruction 32 | . . . . . . 19 . 11 . 2 Attached 9 | . . . . . . 3 1 . 3 2 Robots Rewired . | . . . . . . . . . . . Allies Hacked . | . . . . . . . . . . . Hacks Repelled . | . . . . . . . . . . . Allies | -11 -10 -10 -10 -9 -8 -8 -8 -8 -7 -6 -------- Run | Scr Mat Min Exi Min Mat Gar Mat Gar Fac Fac Total Allies 8 | . 1 . . 1 . 2 1 1 2 . Largest Group 2 | . 1 1 1 2 1 2 2 2 2 2 Highest-Rated Group 122 | . 61 61 61 92 74 90 93 93 122 115 Highest-Rated Ally 101 | . 61 61 61 61 74 77 78 79 92 101 Total Orders 4 | . . . . . . . 4 . . . GOTO 3 | . . . . . . . 3 . . . FOLLOW 1 | . . . . . . . 1 . . . Ally Attacks 384 | . 15 7 . 39 48 49 61 23 98 44 Total Damage 16035 | . 462 195 . 747 919 1194 1492 644 3341 7041 Kills 156 | . 13 3 . 14 11 11 21 5 28 50 Allies Corrupted . | . . . . . . . . . . . Allies Melted . | . . . . . . . . . . . Intel | -11 -10 -10 -10 -9 -8 -8 -8 -8 -7 -6 ------- Run | Scr Mat Min Exi Min Mat Gar Mat Gar Fac Fac Robot Analysis Total 3 | . 3 . . . . . . . . . Derelict Logs Recovered 3 | . . 1 . 2 . . . . . . Drone Launches 2 | . . . . . . . . . . 2 Drone Recoveries . | . . . . . . . . . . . Exploration | -11 -10 -10 -10 -9 -8 -8 -8 -8 -7 -6 ------------- Run | Scr Mat Min Exi Min Mat Gar Mat Gar Fac Fac Turns Passed 11555 | 71 931 722 424 1042 822 2247 973 1536 1542 1245 Spaces Moved 6314 | 51 624 554 321 576 456 1127 430 698 816 661 Core 1 | 1 . . . . . . . . . . Treads 2536 | . . . . 203 2 1127 430 698 76 . Legs 721 | . . . . . . . . . 60 661 Wheels 3056 | 50 624 554 321 373 454 . . . 680 . Hover . | . . . . . . . . . . . Flight . | . . . . . . . . . . . Fastest Speed 50 | 50 100 120 120 130 110 180 180 180 115 150 Average Speed 152 | 99 114 120 121 154 130 180 180 180 147 158 Slowest Speed 220 | 100 120 120 130 200 200 180 220 200 210 180 Overloaded Moves . | . . . . . . . . . . . Propulsion Burnouts . | . . . . . . . . . . . Robots Hopped . | . . . . . . . . . . . Cave-ins Triggered . | . . . . . . . . . . . Exploration Rate (%) 54 | 4 92 99 71 79 41 80 34 56 20 19 Regions Visited 10 Branch Regions 3 Pre-discovered Areas 4 | . 2 . 1 1 . . . . . . Known Exits Taken 2 | . . . . . 1 . 1 . . . Unknown Exits Taken 6 | 1 1 1 1 1 . . . . 1 . Scrap Searched 2 | . . 1 . 1 . . . . . . Spaces Dug 2 | . . . . . . . . . 1 1 Terrain Destroyed 93 | . . . . . . 30 7 . 43 13 Melee 2 | . . . . . . . . . 1 1 Projectile 12 | . . . . . . . . . . 12 AOE 79 | . . . . . . 30 7 . 42 . Actions | -11 -10 -10 -10 -9 -8 -8 -8 -8 -7 -6 --------- Run | Scr Mat Min Exi Min Mat Gar Mat Gar Fac Fac Total 7587 | 64 755 590 358 643 587 1253 556 939 1042 800 Wait 426 | . 42 23 31 13 32 5 32 177 47 24 Move 6305 | 50 623 553 320 575 456 1126 429 697 815 661 Hop . | . . . . . . . . . . . Pick Up 94 | 5 16 1 3 3 15 12 9 4 16 10 Fast Attach 45 | 7 3 . . 1 4 3 8 2 12 5 Attach 36 | . . . . 1 4 5 1 2 13 10 Detach 3 | . . . . . . . . . 2 1 Swap 94 | . 8 . 1 . 6 21 17 10 21 10 Drop 115 | . 14 1 3 3 12 18 18 4 26 16 Fire 404 | 2 49 12 . 47 57 43 41 11 86 56 Melee 34 | . . . . . . 9 1 15 3 6 Ram . | . . . . . . . . . . . Kick . | . . . . . . . . . . . Crush 2 | . . . . . 1 1 . . . . Escape Stasis 26 | . . . . . . 10 . 16 . . Rewire 2 | . . . . . . . . 1 1 . Trap . | . . . . . . . . . . . Miscellaneous 1 | . . . . . . . . . . 1 Route ------- -11/Scrapyard -10/Materials (discovered 5 exits: [*Mat x3] / [*Min x2]) -10/Mines (discovered 3 exits: [*Mat x2] / *Exi) -10/Exiles -9/Mines -8/Materials (discovered 2 exits: *Fac / Gar) -8/Garrison (discovered 3 exits: *Mat x3) -8/Materials (discovered 2 exits: *Fac / Gar) -8/Garrison (discovered 2 exits: *Fac x2) -7/Factory (discovered 2 exits: *Fac / [*Low]) -6/Factory History --------- Turn | Location | Event 14 | -11/Scrapyard | Discovered new exit (range 15) 72 | -11/Scrapyard | Entered Materials 302 | -10/Materials | Build established: Mutant 314 | -10/Materials | Discovered new exit (range 3) 517 | -10/Materials | Discovered new exit (range 15) 639 | -10/Materials | Discovered new exit (range 16) 795 | -10/Materials | Discovered new exit (range 4) 885 | -10/Materials | Discovered new exit (range 12) 1003 | -10/Materials | Entered Mines 1003 | -10/Mines | Accompanied by 1 ally 1075 | -10/Mines | Core integrity fell below 50% 1145 | -10/Mines | Discovered new exit (range 10) 1254 | -10/Mines | Learned 4 Materials zone layouts 1308 | -10/Mines | Deemed a non-threat by the Exiles lab entrance 1618 | -10/Mines | Discovered new exit (range 5) 1700 | -10/Mines | Discovered new exit (range 5) 1725 | -10/Mines | Entered Exiles 1725 | -10/Exiles | Accompanied by 1 ally 1757 | -10/Exiles | Met 8R-AWN 1776 | -10/Exiles | Met EX-HEX 1811 | -10/Exiles | Met EX-BIN 1829 | -10/Exiles | Aligned with FarCom system 1830 | -10/Exiles | Given EX-Vault access code 1858 | -10/Exiles | Opened EX-Vault 1867 | -10/Exiles | Found Modified TNC 1890 | -10/Exiles | Warned to stay clear of 0b10 Research branches 1924 | -10/Exiles | Met EX-DEC 1936 | -10/Exiles | Learned location of Zion (-7) 2131 | -10/Exiles | Discovered new exit (range 10) 2149 | -10/Exiles | Left Exiles lab with Modified TNC 2149 | -10/Exiles | Entered Mines 2149 | -9/Mines | Accompanied by 1 ally 2156 | -9/Mines | Learned location of Storage (-9) 2241 | -9/Mines | Received a Mining Laser from a helpful Derelict 2468 | -9/Mines | Assembled infested the area 2473 | -9/Mines | Assisted by a Guerilla fighting off Assembled 2637 | -9/Mines | Discovered new exit (range 11) 2752 | -9/Mines | Learned Materials emergency access door positions 3109 | -9/Mines | Core integrity fell below 20% 3191 | -9/Mines | Entered Materials 3191 | -8/Materials | Accompanied by 1 ally 3191 | -8/Materials | Evolved 4 slots: Propulsion x1, Utility x2, Weapon x1 3192 | -8/Materials | Identified exit to Factory 3538 | -8/Materials | Build established: Hauler-Skirmisher 3882 | -8/Materials | Garrison activated, responded to threat 4013 | -8/Materials | Identified exit to Garrison 4013 | -8/Materials | Entered Garrison 4013 | -8/Garrison | Accompanied by 1 ally 4074 | -8/Garrison | Spotted B-75 Beast 4074 | -8/Garrison | Spotted B-75 Beast 4157 | -8/Garrison | Triggered checkpoint 4160 | -8/Garrison | Triggered checkpoint 4255 | -8/Garrison | Discovered new exit (range 10) 4328 | -8/Garrison | Triggered checkpoint 4382 | -8/Garrison | Triggered checkpoint 4458 | -8/Garrison | Discovered new exit (range 14) 4563 | -8/Garrison | Installed Relay Interface Framework 4628 | -8/Garrison | Triggered checkpoint 4660 | -8/Garrison | Garrison Relay disabled 4852 | -8/Garrison | Triggered checkpoint 4878 | -8/Garrison | Garrison Relay disabled 5265 | -8/Garrison | Found Powered Armor 5269 | -8/Garrison | Found Powered Armor 5271 | -8/Garrison | Found Powered Armor 5498 | -8/Garrison | Triggered checkpoint 5509 | -8/Garrison | Build established: Scavenger-Mutant 5560 | -8/Garrison | Garrison Relay disabled 5701 | -8/Garrison | Discovered new exit (range 12) 5758 | -8/Garrison | Triggered checkpoint 5800 | -8/Garrison | Garrison Relay disabled 5958 | -8/Garrison | Triggered checkpoint 6084 | -8/Garrison | Garrison Relay disabled 6260 | -8/Garrison | Entered Materials 6260 | -8/Materials | Accompanied by 2 allies 6545 | -8/Materials | Core integrity fell below 50% 6598 | -8/Materials | Build established: Hauler-Skirmisher 6660 | -8/Materials | First assault squad dispatched 6967 | -8/Materials | Garrison activated, responded to threat 7194 | -8/Materials | Discovered exit to Factory (range 11) 7212 | -8/Materials | Identified exit to Garrison 7233 | -8/Materials | Entered Garrison 7233 | -8/Garrison | Accompanied by 1 ally 7278 | -8/Garrison | Triggered checkpoint 7284 | -8/Garrison | Triggered checkpoint 7299 | -8/Garrison | Triggered checkpoint 7328 | -8/Garrison | Triggered checkpoint 7374 | -8/Garrison | Discovered exit to Factory (range 8) 7396 | -8/Garrison | Expanded RIF knowledge: Program Shield 7422 | -8/Garrison | Triggered checkpoint 7450 | -8/Garrison | Garrison Relay disabled 7632 | -8/Garrison | Triggered checkpoint 7642 | -8/Garrison | Discovered exit to Factory (range 14) 7995 | -8/Garrison | Build established: Bothacker-Assassin 8096 | -8/Garrison | Triggered checkpoint 8103 | -8/Garrison | Core integrity fell below 20% 8123 | -8/Garrison | Garrison Relay disabled 8357 | -8/Garrison | Garrison Relay disabled 8364 | -8/Garrison | Triggered checkpoint 8406 | -8/Garrison | Build established: Bothacker-Mutant 8714 | -8/Garrison | Build established: Bothacker-Assassin 8769 | -8/Garrison | Entered Factory 8769 | -7/Factory | Accompanied by 1 ally 8769 | -7/Factory | Evolved 2 slots: Utility x2 9008 | -7/Factory | Discovered new exit (range 15) 9640 | -7/Factory | Lost 3 parts (1n2u) 9814 | -7/Factory | Found Prototype Launcher 9814 | -7/Factory | Identified Rocket Array 9818 | -7/Factory | Found Rocket Array 9940 | -7/Factory | Discovered new exit (range 15) 9969 | -7/Factory | First assault squad dispatched 10030 | -7/Factory | Build established: Bothacker-Skirmisher 10145 | -7/Factory | Lost 3 parts (1n1u1w) 10163 | -7/Factory | Hacking Suite fried by hacking feedback 10311 | -7/Factory | Entered another Factory area 10311 | -6/Factory | Accompanied by 2 allies 10311 | -6/Factory | Evolved 2 slots: Propulsion x1, Utility x1 10444 | -6/Factory | Build established: Scavenger-Mutant 10947 | -6/Factory | Build established: Hauler-Mutant 11011 | -6/Factory | First assault squad dispatched 11264 | -6/Factory | High security lockdown imminent 11344 | -6/Factory | High security lockdown engaged 11457 | -6/Factory | Lost 3 parts (1p1n1u) 11511 | -6/Factory | Core integrity fell below 50% 11547 | -6/Factory | Core integrity fell below 20% 11556 | -6/Factory | Destroyed by G-67 Veteran with Plasma Rifle Last Messages --------------- 11380_ C-30 ARC bursts open, deploying its payload. 11380_ G-67 Veteran unfolds itself. 11380_ G-50 Soldier unfolds itself. 11380_ E-15 Imp unfolds itself. 11400_ M-28 Smith fits Backup Laser III on G-67 Veteran. 11402_ F-cell Engine destroyed. 11402_ Hrd. Medium Armor Plating destroyed. 11402_ M-28 Smith fits Backup Laser III on G-67 Veteran. 11404_ M-28 Smith fits Backup Power III on G-67 Veteran. 11425_ System corrupted: Antimatter Cannon targeting data glitched. 11426_ Carbon-fiber Leg destroyed. 11439_ System corrupted: Heat flow error (+144). 11446_ G-67 Veteran destroyed. 11457_ L-41 Fighter suffers critical hit. 11457_ Destroyed Carbon-fiber Leg. 11457_ L-41 Fighter knocked back. 11464_ ALERT: Assault forces dispatched. 11525_ System corrupted: Energy discharge (-50). 11550_ Hrd. Medium Armor Plating destroyed. 11553_ Carbon-fiber Leg destroyed. Map ----- +----------------------------------------------------+ | # # #????????????????????? | | # # ! #????????????????????? | | # # #????????????????????? | | # # !#????????????????????? | | ! #????????????????????? | | # # !! #????????????????????? | | # ###############????????????????????? | | ##"###### # ???????????????????????????? | | # """ ??????????????????????????? | | # """ ??????????????????????????? | | # """ #?????????????????????????? | | ## + "" #?????????????????????????? | | #=! # "" #?????????????????????????? | | #%! # #?????????????????????????? | | #!= # = #?????????????????????????? | | # # #?????????????????????????? | | # ##########?????????????????????????? | | + #??????????????????????????????????? | | # #??????????????????????????????????? | | # #??????????????????????????????????? | | # ########???#####??????????????????????????? | | # #??????????# # ##?????????????????????????? | | #######????????#### ##????????????????????????? | | #????########### *%! #?????????????###+###????? | | ##????# ==% ##+############ #????# | | #?????# @ ### | | #?????# l [ | | #?????# #????? | | ####### b ##+############ #????? | | # # ###### # #???#C#####????? | | # # #########g####== "" #??## #????????? | | # """ # # g i #== """ #?# " ###??????? | | # """ # # #= R" #?# #????? ? | | # """ # # """" """" # """ #?# #????? ? | | # "" # + """" """" # ## [ #?????=? | | + "" # # """" """" # ## % #?????%? | | # # # """" """" # ### [ #?????%? | | #""" # # ###+#######?# # #????? ? | | #"R # # """" """"???# #???????### ###????? ? | | #""" # # """" """"???# ##?######?# #??????# # | | # # # """" ""????## "#?# #"######## # | | ####### # """"C"?????#" ##?# """" #%# # # | | ??????# # ? ?????## "#?# """" +%+ """" # # | | ??????# ############??#"g#??# """" # # """" / | | ###???# # ///#???# #??? """" # # """" # # | | #???# / ///#??##%#??? ?# # """" # # | | " #???# # ///#??#" #??######?# # + " | | ""#???# ##### #??## #?????????# #######" # | | R"#???# #???# "" "" #???# #?????????# #?????## # | | ""#???# #???# ""T"" #???# #?????????# #??????# # | +----------------------------------------------------+ Best States ------------- Heat Dissipation 37 Energy Generation 20 Energy Capacity 500 Matter Stores 300 Matter Capacity 300 Sight Range 16 Terrain Scan Range 20 Terrain Scan Density 10 Power Amplification 20 Armor Coverage 800 Evasion (%) 40 Recoil Reduction 3 Item Schematics ----------------- Cmb. Airjet | -8/Materials | Scanalyzed Lgt. Fission Core | -8/Materials | Scanalyzed Enh. Autogun | -8/Materials | Scanalyzed Robot Schematics ------------------ None Fabricated ------------ Nothing Alien Tech Used ----------------- None Achievements -------------- Gunslinger Challenges ------------ None Game ------ Seed TrapNullEdition Manual? 0 Play Time 01:32:45 Cumulative 371.6 hours Start 2020.04.03 @ 10:18:26 End 2020.04.03 @ 11:53:01 Sessions 2 Manual Loads 0 Difficulty Rogue Special Mode AFD2020/Player2 Game No. 259 Rogue 259 Adventurer 0 Explorer 0 Win Type - Total 4 Types 4/0/0/0/0/0/0 Lore% 82 Gallery% 84 Achievement% 63 Wizard Run 0 Options --------- ASCII 0 Keyboard 0 Movement Mouse Keybinds 1 Fullscreen 2 Font 24/Smallcaps Map View 76x50 Tactical HUD 1 Map Filters NONE Filters NONE Steam 1 RUN: d170785e-4acb-47f6-a334-42977078fda6